bitfinex/quotes_SOLUSD_20250829
["timestamp","ask_amount","ask_price","bid_price","bid_amount"]
[1756440452012,64.46569426,217.03,217.02,1e-08]
[1756440452609,31.98965451,217.03,217.02,1e-08]
[1756440452812,64.46569426,217.03,217.02,1e-08]
[1756440453622,69.33965451,217.03,217.02,1e-08]
[1756440454706,72.77042603,217.03,217.02,1e-08]
[1756440454912,72.10042603,217.03,217.02,1e-08]
[1756440455108,40.04793868,217.03,217.02,0.67000001]
[1756440455311,12.20015068,217.03,217.02,0.67000001]
[1756440455502,48.88015068,217.03,217.02,1e-08]
[1756440455703,66.82186651,217.03,217.02,1e-08]
[1756440455905,70.92192304,217.03,217.02,1e-08]
[1756440456108,72.76971104,217.03,217.02,1e-08]
[1756440456531,72.75217303,217.03,217.02,1e-08]
[1756440456732,52.99425253,217.03,217.02,1e-08]
[1756440457034,94.6521165,217.03,217.02,1e-08]
[1756440457609,57.9721165,217.03,217.02,1e-08]
[1756440457806,50.42607753,217.03,217.02,0.67000001]
[1756440458234,46.36427885,217.03,217.02,0.67000001]
[1756440458530,48.7204511,217.03,217.02,0.67000001]
[1756440458724,48.7204511,217.03,217.02,1e-08]
[1756440459332,66.8043285,217.03,217.02,1e-08]
[1756440459506,63.27036825,217.03,217.02,1e-08]
[1756440459709,49.00477424,217.03,217.02,1e-08]
[1756440460117,12.32477424,217.03,217.02,1e-08]
[1756440460346,49.00477424,217.03,217.02,1e-08]
[1756440461623,62.60036825,217.03,217.02,1e-08]
[1756440461818,66.8043285,217.03,217.02,1e-08]
[1756440462015,71.0082885,217.03,217.02,1e-08]
[1756440462924,71.6782885,217.03,217.02,1e-08]
[1756440464010,71.0082885,217.03,217.02,1e-08]
[1756440464213,74.4381873,217.03,217.02,1e-08]
[1756440464739,75.1081873,217.03,217.02,1e-08]
[1756440465439,37.7581873,217.03,217.02,1e-08]
[1756440465743,71.0082885,217.03,217.02,1e-08]
[1756440467744,74.43909669,217.03,217.02,1e-08]
[1756440467938,75.10909669,217.03,217.02,1e-08]
[1756440468140,74.43909669,217.03,217.02,1e-08]
[1756440468343,37.75909669,217.03,217.02,1e-08]
[1756440468521,66.88396025,217.03,217.02,0.67000001]
[1756440469036,74.57927143,217.03,217.02,0.67000001]
[1756440469424,38.041433,217.03,217.02,0.67000001]
[1756440469636,74.721433,217.03,217.02,0.67000001]
[1756440470825,70.51747275,217.03,217.02,0.67000001]
[1756440471042,74.721433,217.03,217.02,0.67000001]
[1756440472126,69.97161351,217.03,217.02,0.67000001]
[1756440472626,74.57927143,217.03,217.02,0.67000001]
[1756440473733,74.721433,217.03,217.02,1e-08]
[1756440474947,78.15691577,217.03,217.02,1e-08]
[1756440477743,78.15691577,217.03,217.02,0.67000001]
[1756440479142,78.15691577,217.03,217.02,1e-08]
[1756440480055,78.16242246,217.03,217.02,1e-08]
[1756440480354,78.14242246,217.03,217.02,1e-08]
[1756440481448,70.22629986,217.03,217.02,1e-08]
[1756440481633,72.07391786,217.03,217.02,1e-08]
[1756440481945,72.76391786,217.03,217.02,1e-08]
[1756440482249,69.3229284,217.03,217.02,1e-08]
[1756440482560,0.14216157,216.95,216.91,0.66]
[1756440482765,0.14216157,216.95,216.9,0.2]
[1756440482766,0.14216157,216.91,216.9,0.2]
[1756440482963,0.14216157,216.87,216.82,0.66]
[1756440483261,34.8158991,216.83,216.79,2.40574433]
[1756440483469,4.20396025,216.8,216.73,4.20396025]
[1756440483624,4.20396025,216.79,216.74,4.86396025]
[1756440483823,40.86396025,216.8,216.75,0.66]
[1756440484133,4.20396025,216.79,216.75,0.66]
[1756440484338,36.66,216.8,216.75,0.66]
[1756440484530,4.20396025,216.87,216.79,4.20396025]
[1756440484731,40.86396025,216.87,216.81,4.20396025]
[1756440485036,4.20396025,216.83,216.82,0.66]
[1756440485365,40.86396025,216.84,216.82,0.66]
[1756440485530,36.66,216.84,216.82,0.66]
[1756440486228,36.66,216.84,216.83,0.66]
[1756440486449,40.86396025,216.84,216.8,0.66]
[1756440486649,4.20396025,216.81,216.78,0.66]
[1756440486829,4.20396025,216.81,216.75,0.66]
[1756440486830,4.20396025,216.79,216.75,0.66]
[1756440487029,36.66,216.78,216.71,7.02076244]
[1756440487262,4.20396025,216.76,216.71,7.02076244]
[1756440487463,4.20396025,216.75,216.71,7.02076244]
[1756440487650,4.20396025,216.75,216.72,0.66]
[1756440487961,0.14216157,216.8,216.72,0.66]
[1756440488166,0.97432314,216.82,216.72,0.66]
[1756440488167,4.20396025,216.76,216.72,0.66]
[1756440488931,4.20396025,216.77,216.72,4.86396025]
[1756440489163,0.14216157,216.83,216.73,0.66]
[1756440489164,40.88396025,216.78,216.73,0.66]
[1756440491460,36.68,216.79,216.75,4.20396025]
[1756440491661,36.68,216.79,216.74,4.61382301]
[1756440491662,40.88396025,216.79,216.76,0.66]
[1756440491863,40.88396025,216.79,216.77,0.66]
[1756440492156,40.88396025,216.79,216.78,0.66]
[1756440492973,4.20396025,216.79,216.78,0.66]
[1756440493339,4.20396025,216.79,216.75,5.27339835]
[1756440493565,4.20396025,216.78,216.76,0.66]
[1756440494346,36.68,216.8,216.73,4.61385981]
[1756440494567,4.20396025,216.78,216.77,0.66]
[1756440494766,4.20396025,216.78,216.73,4.61385981]
[1756440494975,4.20396025,216.78,216.74,0.66]
[1756440495172,26.0,216.82,216.73,4.61385981]
[1756440495378,4.20396025,216.8,216.75,4.61361014]
[1756440495581,4.20396025,216.79,216.76,0.66]
[1756440495887,36.68,216.81,216.77,4.86396025]
[1756440496060,36.68,216.81,216.78,4.86396025]
[1756440496258,36.68,216.83,216.79,0.66]
[1756440496682,36.68,216.85,216.81,4.20396025]
[1756440496980,4.20396025,216.88,216.82,4.86396025]
[1756440497163,4.20396025,216.88,216.83,4.86396025]
[1756440497365,26.0,216.86,216.84,5.27169525]
[1756440497592,4.20396025,216.88,216.85,0.66]
[1756440497881,4.20396025,216.91,216.86,4.20396025]
[1756440498070,30.20396025,216.91,216.87,0.66]
[1756440498276,4.20396025,216.91,216.86,4.20396025]
[1756440498453,4.20396025,216.91,216.88,0.66]
[1756440498650,5.29913671,216.97,216.88,0.66]
[1756440498851,4.20396025,216.93,216.88,0.66]
[1756440499051,40.88396025,216.94,216.88,4.86396025]
[1756440499256,4.20396025,216.92,216.89,0.66]
[1756440499480,4.20396025,216.9,216.86,0.66]
[1756440499662,4.20396025,216.88,216.84,0.66]
[1756440499862,4.20396025,216.87,216.84,0.66]
[1756440500393,30.20396025,216.88,216.85,0.66]
[1756440501165,30.20396025,216.88,216.86,0.66]
[1756440501770,30.20396025,216.88,216.83,0.66]
[1756440501984,4.20396025,216.87,216.85,0.03]
[1756440502370,26.0,216.88,216.85,0.03]
[1756440502578,4.20396025,216.87,216.85,0.03]
[1756440503295,4.20396025,216.88,216.85,0.03]
[1756440503593,40.88396025,216.9,216.86,0.66]
[1756440503789,4.20396025,216.89,216.85,0.03]
[1756440504096,4.20396025,216.88,216.85,0.03]
[1756440504269,4.20396025,216.87,216.85,0.03]
[1756440504796,4.20396025,216.86,216.85,0.03]
[1756440505098,4.20396025,216.87,216.85,0.03]
[1756440505900,4.20396025,216.89,216.85,0.03]
[1756440506136,37.37,216.9,216.85,0.03]
[1756440506137,26.0,216.88,216.86,0.66]
[1756440506270,26.0,216.88,216.85,4.23396025]
[1756440506470,26.0,216.88,216.87,0.66]
[1756440506899,26.0,216.88,216.85,4.23396025]
[1756440507203,26.0,216.88,216.85,0.69]
[1756440507966,36.68,216.91,216.86,4.86396025]
[1756440508165,30.20396025,216.92,216.87,0.66]
[1756440508399,36.68,216.93,216.88,4.86396025]
[1756440508574,62.68,216.93,216.89,0.66]
[1756440509170,66.88396025,216.93,216.89,0.66]
[1756440509469,66.88396025,216.93,216.87,4.86396025]
[1756440509892,66.88396025,216.93,216.88,9.47459612]
[1756440510095,66.88396025,216.93,216.89,0.66]
[1756440510295,30.20396025,216.93,216.89,0.66]
[1756440510498,36.68,216.95,216.91,4.20396025]
[1756440510808,4.20396025,216.95,216.92,0.71]
[1756440511002,36.68,216.97,216.93,0.71]
[1756440511300,40.88396025,216.97,216.91,0.71]
[1756440511591,4.20396025,216.96,216.91,0.71]
[1756440511799,4.20396025,216.96,216.91,4.91396025]
[1756440512104,4.20396025,216.96,216.91,9.52407994]
[1756440513074,40.86396025,216.97,216.91,8.81407994]
[1756440513271,66.86396025,216.98,216.93,4.20396025]
[1756440513515,0.69,217.02,216.95,4.20396025]
[1756440513796,40.86396025,217.01,216.96,4.20396025]
[1756440513974,62.66,217.01,216.96,8.81302744]
[1756440514178,66.86396025,217.01,216.96,9.52302744]
[1756440514597,0.06,217.03,216.97,0.71]
[1756440514814,0.06,217.03,217.0,4.20396025]
[1756440514983,0.06,217.03,217.01,4.91396025]
[1756440515180,0.06,217.03,217.01,0.71]
[1756440515384,0.06,217.03,216.99,4.20396025]
[1756440515796,0.06,217.03,217.0,4.91396025]
[1756440516005,4.20396025,217.02,216.97,0.71]
[1756440516181,0.06,217.03,216.94,0.71]
[1756440516182,4.20396025,216.99,216.94,0.71]
[1756440516378,4.20396025,216.98,216.93,4.60974419]
[1756440516578,4.20396025,216.98,216.93,5.31974419]
[1756440516778,0.69,216.99,216.93,5.31974419]
[1756440517003,4.20396025,216.98,216.93,5.31974419]
[1756440518779,4.20396025,216.96,216.9,5.318246]
[1756440519003,4.20396025,216.95,216.9,0.71]
[1756440519319,4.20396025,216.93,216.88,4.94396025]
[1756440519489,4.20396025,216.93,216.88,0.74]
[1756440519689,4.89396025,216.93,216.88,0.74]
[1756440519899,9.50376665,216.93,216.88,0.74]
[1756440520407,4.89396025,216.93,216.88,0.74]
[1756440520596,4.20396025,216.94,216.89,4.91396025]
[1756440520792,4.20396025,216.94,216.9,0.71]
[1756440521117,26.69,216.96,216.89,4.20396025]
[1756440521303,4.20396025,216.94,216.88,9.55477828]
[1756440522509,4.60962846,216.94,216.88,9.5547918]
[1756440522710,4.20396025,216.93,216.88,5.35083155]
[1756440522910,4.20396025,216.93,216.89,0.71]
[1756440523286,8.81379254,216.93,216.88,0.03]
[1756440523492,4.89396025,216.92,216.88,0.03]
[1756440523692,4.20396025,216.92,216.88,0.74]
[1756440523893,4.89396025,216.93,216.88,0.74]
[1756440524302,4.20396025,216.93,216.89,0.71]
[1756440524709,0.69,216.95,216.89,0.71]
[1756440525007,4.20396025,216.93,216.89,0.71]
[1756440525211,4.20396025,216.91,216.88,0.03]
[1756440525402,4.20396025,216.89,216.88,0.03]
[1756440526220,4.89396025,216.89,216.88,0.03]
[1756440528910,35.50459236,216.89,216.88,0.03]
[1756440529096,72.16459236,216.89,216.88,0.03]
[1756440530420,75.25238623,216.89,216.88,0.03]
[1756440530621,75.3945478,216.89,216.88,0.03]
[1756440531308,75.67887094,216.89,216.88,0.03]
[1756440533113,34.53058755,216.89,216.88,0.03]
[1756440533418,38.7345478,216.89,216.88,0.03]
[1756440533612,75.3945478,216.89,216.88,0.03]
[1756440534014,38.59238623,216.89,216.88,0.03]
[1756440534217,75.3945478,216.89,216.88,0.03]
[1756440537121,75.25238623,216.89,216.88,0.03]
[1756440537704,38.59238623,216.89,216.88,0.03]
[1756440538027,75.25238623,216.89,216.88,0.03]
[1756440539218,75.3945478,216.89,216.88,0.03]
[1756440540025,3.08779387,216.89,216.88,0.74]
[1756440540229,4.20396025,216.89,216.88,0.03]
[1756440540442,7.29175412,216.89,216.88,0.03]
[1756440540609,3.08779387,216.89,216.88,0.03]
[1756440540809,7.29175412,216.89,216.88,0.03]
[1756440541327,3.08779387,216.89,216.88,0.03]
[1756440541518,40.86396025,216.89,216.88,0.03]
[1756440543256,48.56911953,216.89,216.88,0.03]
[1756440543400,11.90911953,216.89,216.88,0.03]
[1756440543607,40.86396025,216.9,216.88,0.71]
[1756440543913,26.06,216.93,216.88,0.71]
[1756440543914,0.06,216.93,216.88,0.71]
[1756440544120,0.06,216.93,216.89,4.20396025]
[1756440544427,4.26396025,216.93,216.9,0.68]
[1756440544631,4.26396025,216.93,216.88,0.71]
[1756440544632,4.20396025,216.91,216.88,0.71]
[1756440544840,4.20396025,216.89,216.88,0.03]
[1756440545839,4.20396025,216.89,216.88,0.71]
[1756440546152,40.86396025,216.9,216.88,0.71]
[1756440546313,40.86396025,216.9,216.89,0.68]
[1756440546715,62.66,216.9,216.89,0.68]
[1756440547014,26.0,216.9,216.89,0.68]
[1756440547432,30.20396025,216.9,216.88,0.03]
[1756440547914,0.06,216.93,216.88,0.03]
[1756440548233,0.06,216.93,216.9,4.20396025]
[1756440548538,0.06,216.93,216.91,0.68]
[1756440549420,0.06,216.93,216.92,4.60999446]
[1756440549627,0.06,216.93,216.92,22.40954872]
[1756440549828,0.06,216.93,216.92,23.08954872]
[1756440550023,0.06,216.96,216.93,13.59559401]
[1756440550224,0.06,216.96,216.93,0.68]
[1756440550558,0.06,216.96,216.95,4.20396025]
[1756440550712,0.06,216.96,216.95,4.88396025]
[1756440551517,0.06,216.96,216.95,9.49331724]
[1756440552318,0.06,216.96,216.95,5.28935699]
[1756440552538,0.06,216.96,216.95,9.49331724]
[1756440552839,0.06,216.96,216.95,0.68]
[1756440553336,4.26396025,216.96,216.9,0.68]
[1756440553645,4.20396025,216.91,216.88,0.03]
[1756440553826,4.20396025,216.89,216.88,0.03]
[1756440554231,4.20396025,216.9,216.88,0.71]
[1756440554613,4.20396025,216.9,216.88,0.03]
[1756440554820,4.20396025,216.89,216.88,0.03]
[1756440555547,7.31329647,216.89,216.88,0.03]
[1756440556730,11.92392858,216.89,216.88,0.03]
[1756440557324,41.01555445,216.89,216.88,0.03]
[1756440557542,6.64329647,216.89,216.88,0.03]
[1756440557766,69.28329647,216.89,216.88,0.03]
[1756440558440,74.56392858,216.89,216.88,0.03]
[1756440558938,76.98559258,216.89,216.88,0.03]
[1756440559339,77.65559258,216.89,216.88,0.03]
[1756440559546,72.37496047,216.89,216.88,0.03]
[1756440559941,35.73496047,216.89,216.88,0.03]
[1756440560139,32.64329647,216.89,216.88,0.03]
[1756440560343,69.28329647,216.89,216.88,0.03]
[1756440560848,32.64329647,216.89,216.88,0.03]
[1756440561037,69.28329647,216.89,216.88,0.03]
[1756440561359,32.64329647,216.89,216.88,0.71]
[1756440561541,32.64329647,216.89,216.88,0.03]
[1756440562128,35.73849551,216.89,216.88,0.03]
[1756440562727,32.64329647,216.89,216.88,0.03]
[1756440564859,40.35038057,216.89,216.88,0.03]
[1756440565057,35.73974846,216.89,216.88,0.03]
[1756440565542,6.64329647,216.89,216.88,0.03]
[1756440565944,6.64329647,216.89,216.88,0.71]
[1756440567141,6.64329647,216.89,216.88,0.03]
[1756440568540,10.41006774,216.89,216.88,0.03]
[1756440568736,15.02069985,216.89,216.88,0.03]
[1756440569262,15.16286142,216.89,216.88,0.03]
[1756440570258,8.51956495,216.89,216.88,0.03]
[1756440570555,15.16286142,216.89,216.88,0.03]
[1756440570936,50.99069985,216.89,216.88,0.03]
[1756440571137,51.66069985,216.89,216.88,0.03]
[1756440571567,51.80286142,216.89,216.88,0.03]
[1756440572164,45.15956495,216.89,216.88,0.03]
[1756440572364,51.80286142,216.89,216.88,0.03]
[1756440574272,50.99069985,216.89,216.88,0.03]
[1756440574572,26.14216157,216.86,216.85,0.03]
[1756440574886,72.80651657,216.86,216.85,0.03]
[1756440575165,41.16346337,216.86,216.85,0.03]
[1756440575350,40.49346337,216.86,216.85,0.03]
[1756440575547,77.13346337,216.86,216.85,0.03]
[1756440575754,77.80346337,216.86,216.85,0.03]
[1756440576247,78.08778651,216.86,216.85,0.03]
[1756440576443,71.44449004,216.86,216.85,0.03]
[1756440576671,78.08778651,216.86,216.85,0.03]
[1756440577467,75.66376403,216.86,216.85,0.03]
[1756440578769,74.70944089,216.86,216.85,0.03]
[1756440579953,33.31600938,216.86,216.85,0.03]
[1756440580151,69.95600938,216.86,216.85,0.72]
[1756440580572,7.31600938,216.86,216.85,0.72]
[1756440580780,40.85927399,216.86,216.85,0.72]
[1756440580977,4.61080238,216.89,216.85,0.72]
[1756440580978,36.64,216.89,216.85,0.72]
[1756440581269,26.0,216.86,216.85,0.03]
[1756440581960,26.0,216.86,216.85,0.72]
[1756440582756,30.21927399,216.86,216.85,0.72]
[1756440583058,4.21927399,216.86,216.85,0.03]
[1756440583259,7.31445871,216.86,216.85,0.03]
[1756440583561,4.21927399,216.86,216.85,0.03]
[1756440583763,4.21927399,216.86,216.85,0.72]
[1756440584755,62.64,216.87,216.85,0.72]
[1756440585049,66.85927399,216.87,216.86,0.69]
[1756440585580,30.21927399,216.87,216.86,0.69]
[1756440585750,4.27927399,216.9,216.86,0.69]
[1756440586074,0.06,216.9,216.86,9.52050517]
[1756440586255,0.06,216.9,216.87,0.69]
[1756440586865,0.06,216.9,216.88,4.21927399]
[1756440587057,0.06,216.9,216.89,4.21927399]
[1756440587262,0.06,216.9,216.89,0.69]
[1756440587473,0.06,216.9,216.89,4.90927399]
[1756440587655,0.06,216.9,216.89,9.5199061]
[1756440588181,0.06,216.9,216.89,23.39982325]
[1756440588475,0.06,216.9,216.89,0.69]
[1756440588682,0.06,216.9,216.89,5.30063211]
[1756440588864,0.06,216.9,216.89,0.69]
[1756440589068,4.27927399,216.9,216.89,0.69]
[1756440589875,0.06,216.9,216.89,0.69]
[1756440591081,0.06,216.9,216.89,9.5199061]
[1756440592676,0.06,216.9,216.89,0.69]
[1756440594297,0.06,216.9,216.89,5.30063211]
[1756440595480,0.06,216.9,216.89,102.39982325]
[1756440600392,0.06,216.96,216.92,22.31846513]
[1756440600693,0.06,216.96,216.95,18.09919114]
[1756440601077,0.06,216.96,216.95,25.21531313]
[1756440601277,0.06,216.96,216.95,45.21531313]
[1756440601474,1e-08,216.96,216.95,45.81841039]
[1756440601686,1e-08,216.96,216.95,62.45841039]
[1756440601881,1e-08,216.96,216.95,82.45841039]
[1756440602809,1e-08,216.96,216.95,62.45841039]
[1756440602987,1e-08,216.96,216.95,88.45841039]
[1756440604796,0.06,217.06,217.02,18.09919114]
[1756440605099,0.06,217.06,217.02,54.71919114]
[1756440605405,0.06,217.06,217.02,55.76778739]
[1756440605561,0.06,217.06,217.02,59.98706138]
[1756440605967,0.06,217.06,217.02,60.59000997]
[1756440606220,0.06,217.06,217.02,64.80928396]
[1756440606603,0.06,217.06,217.02,139.59000997]
[1756440606767,0.06,217.06,217.02,139.12922295]
[1756440607485,0.06,217.06,217.02,143.34849694]
[1756440607689,0.06,217.06,217.02,163.34849694]
[1756440608287,1e-08,217.03,217.02,163.34849694]
[1756440608599,1e-08,217.04,217.03,14.02207872]
[1756440608781,0.06,217.11,217.06,40.02207872]
[1756440608983,0.06,217.11,217.07,54.86135271]
[1756440609194,0.06,217.11,217.07,55.52135271]
[1756440609706,0.06,217.11,217.07,60.12816157]
[1756440610082,0.06,217.11,217.07,61.97381857]
[1756440611476,0.75,217.11,217.07,94.44125101]
[1756440611697,0.75,217.11,217.07,133.414868]
[1756440611876,0.75,217.11,217.07,129.19559401]
[1756440612077,0.06,217.11,217.07,138.966]
[1756440612503,0.06,217.11,217.07,139.10816157]
[1756440613087,0.06,217.11,217.07,140.95381857]
[1756440613277,1e-08,217.08,217.07,140.95381857]
[1756440613678,1e-08,217.08,217.07,136.73454458]
[1756440613878,1e-08,217.08,217.07,140.95381857]
[1756440618489,0.06,217.11,217.08,78.99999999]
[1756440618811,0.06,217.11,217.1,44.24135271]
[1756440619212,0.2,217.12,217.11,14.02207872]
[1756440619390,0.2,217.15,217.14,40.02207872]
[1756440619585,0.2,217.15,217.14,81.30188508]
[1756440620085,0.2,217.15,217.14,41.14261109]
[1756440620303,0.2,217.15,217.14,83.80694608]
[1756440621300,0.2,217.15,217.14,88.41226983]
[1756440621498,0.89,217.15,217.11,17.814868]
[1756440621717,0.69,217.14,217.13,13.59559401]
[1756440623304,0.2,217.15,217.13,13.59559401]
[1756440623506,0.89,217.15,217.14,36.58]
[1756440623817,0.2,217.15,217.14,36.58]
[1756440624404,0.89,217.15,217.14,36.58]
[1756440625520,0.2,217.15,217.14,36.58]
[1756440625718,0.89,217.15,217.13,4.60544798]
[1756440625928,0.89,217.15,217.14,36.58]
[1756440627316,0.89,217.15,217.13,4.60544798]
[1756440627493,0.2,217.15,217.14,36.58]
[1756440628110,0.89,217.15,217.14,36.58]
[1756440628705,0.89,217.15,217.12,87.82499243]
[1756440629013,0.89,217.15,217.13,36.58]
[1756440629505,0.89,217.15,217.12,87.82499243]
[1756440629694,0.89,217.15,217.13,36.58]
[1756440630196,0.2,217.15,217.12,83.60571844]
[1756440630510,0.68,217.14,217.1,36.58]
[1756440630702,4.89927399,217.13,217.1,36.58]
[1756440630905,0.68,217.12,217.1,36.58]
[1756440631110,4.21927399,217.13,217.07,0.03]
[1756440631414,4.89927399,217.11,217.07,13.62559401]
[1756440631613,0.68,217.1,217.07,50.20559401]
[1756440631814,0.68,217.09,217.07,50.20559401]
[1756440632494,4.21927399,217.11,217.07,0.03]
[1756440632817,0.68,217.09,217.07,0.03]
[1756440633118,4.89927399,217.09,217.07,0.03]
[1756440633311,4.21927399,217.08,217.07,0.03]
[1756440633899,0.68,217.11,217.07,0.03]
[1756440634106,0.68,217.11,217.07,8.85607744]
[1756440634300,0.68,217.11,217.08,4.21927399]
[1756440634618,0.68,217.11,217.08,8.82568823]
[1756440634817,0.68,217.11,217.08,4.60641424]
[1756440635129,3.27218364,217.15,217.08,8.82568823]
[1756440635323,3.27218364,217.15,217.13,4.21927399]
[1756440635324,0.2,217.15,217.13,4.21927399]
[1756440635623,0.2,217.15,217.12,13.59559401]
[1756440635819,0.2,217.15,217.14,4.21927399]
[1756440636028,0.2,217.15,217.12,17.814868]
[1756440636406,0.2,217.15,217.13,4.60553585]
[1756440637319,0.2,217.15,217.13,9.52480984]
[1756440637731,0.2,217.15,217.13,46.10480984]
[1756440638129,0.2,217.15,217.13,45.40480984]
[1756440639113,0.2,217.15,217.13,46.10480984]
[1756440639610,0.2,217.15,217.13,45.40480984]
[1756440640035,0.2,217.15,217.14,4.21927399]
[1756440640834,0.2,217.15,217.14,8.82459774]
[1756440641337,0.2,217.15,217.14,102.40451488]
[1756440641926,0.2,217.15,217.14,98.18524089]
[1756440642122,0.2,217.15,217.13,36.58]
[1756440642123,0.88,217.15,217.12,4.219274]
[1756440642429,4.21927399,217.13,217.08,4.60658243]
[1756440642626,4.89927399,217.12,217.08,4.60658243]
[1756440642937,4.89927399,217.11,217.07,36.61]
[1756440643114,4.60554459,217.13,217.07,36.61]
[1756440643115,4.89927399,217.1,217.07,36.61]
[1756440643322,4.21927399,217.12,217.07,46.13607098]
[1756440643515,4.89927399,217.13,217.08,4.21927399]
[1756440643829,4.21927399,217.13,217.08,4.21927399]
[1756440644135,3.09589742,217.12,217.08,4.21927399]
[1756440644339,4.89927399,217.13,217.08,4.21927399]
[1756440644539,3.09608986,217.12,217.07,46.13607098]
[1756440644845,4.89927399,217.13,217.08,13.59559401]
[1756440645145,7.99532025,217.12,217.07,41.21679699]
[1756440645328,4.21927399,217.11,217.07,41.21679699]
[1756440645639,4.89927399,217.11,217.07,41.21679699]
[1756440646023,4.89927399,217.11,217.08,0.03]
[1756440646226,3.09637754,217.14,217.1,4.21927399]
[1756440646431,0.2,217.15,217.11,4.91927399]
[1756440647142,0.2,217.15,217.12,4.60574797]
[1756440648639,3.10004413,217.14,217.12,4.60574797]
[1756440648844,0.2,217.15,217.12,4.60574797]
[1756440649150,3.10005502,217.14,217.12,4.60574797]
[1756440649326,0.2,217.15,217.13,0.7]
[1756440649740,0.2,217.15,217.13,4.91927399]
[1756440650542,0.2,217.15,217.14,4.60532375]
[1756440650721,3.30248692,217.15,217.14,4.60532375]
[1756440651123,0.2,217.15,217.14,4.60532375]
[1756440651740,0.2,217.15,217.14,23.12019175]
[1756440651938,0.2,217.15,217.14,23.40451489]
[1756440652241,0.2,217.15,217.14,102.40451488]
[1756440652437,0.88,217.15,217.14,78.99999999]
[1756440652643,0.88,217.15,217.08,0.03]
[1756440652644,8.20212048,217.15,217.08,115.60999999]
[1756440652848,4.21927399,217.1,217.08,0.03]
[1756440653021,4.21927399,217.09,217.08,0.03]
[1756440653345,8.00301692,217.09,217.08,0.03]
[1756440655227,7.32301692,217.09,217.08,0.03]
[1756440655526,4.21927399,217.11,217.08,0.03]
[1756440655849,7.32086886,217.11,217.08,0.03]
[1756440656143,3.10164416,217.1,217.08,0.03]
[1756440656321,7.32052098,217.11,217.08,0.03]
[1756440657346,4.21927399,217.11,217.08,0.03]
[1756440657727,4.21927399,217.11,217.08,0.73]
[1756440657928,0.68,217.14,217.08,0.03]
[1756440657929,3.10073464,217.12,217.08,0.03]
[1756440658145,4.21927399,217.11,217.08,0.03]
[1756440660234,4.21927399,217.1,217.08,0.03]
[1756440660435,4.21927399,217.09,217.08,0.03]
[1756440660635,8.03979536,217.09,217.08,0.03]
[1756440660823,12.6461798,217.09,217.08,0.03]
[1756440661155,8.03979536,217.09,217.08,0.03]
[1756440661352,4.93927399,217.09,217.08,0.03]
[1756440661559,4.21927399,217.09,217.08,0.03]
[1756440661852,3.10052137,217.1,217.08,0.03]
[1756440662151,7.31979536,217.1,217.08,0.03]
[1756440662354,4.93927399,217.09,217.08,0.03]
[1756440662721,8.03849843,217.09,217.08,0.03]
[1756440662920,12.64488287,217.09,217.08,0.03]
[1756440665630,8.42560888,217.09,217.08,0.03]
[1756440665824,12.64488287,217.09,217.08,0.03]
[1756440666424,13.13057424,217.09,217.08,0.03]
[1756440666638,16.51335712,217.09,217.08,0.03]
[1756440666830,26.42648471,217.06,217.05,0.03]
[1756440667044,14.02207872,217.05,217.04,0.03]
[1756440667243,26.14216157,217.03,216.94,2.40404384]
[1756440667440,73.48264954,217.03,216.94,5.26952932]
[1756440667640,78.81030746,217.03,216.94,5.26952932]
[1756440667833,42.23030746,217.03,216.94,5.26952932]
[1756440668043,75.36755322,217.03,216.94,9.48880331]
[1756440668343,79.58682721,217.03,216.94,0.66]
[1756440668764,74.83700772,217.03,216.94,4.60952231]